Body Name,Body Unit ,Service Label,Service Code,Organisational Unit,Expenditure, Payment Date,Transaction number,Net payment ,Supplier ID,Supplier Name ,
North West Leicestershire ,31UH,Finance,EXCH,Exchequer Services,Supply of Temporary Staff,01/05/2013,1256385,"11,426.76",A036958,Comensura Limited,
North West Leicestershire ,31UH,Housing,HRAHM,HRA Housing Management,Tenants Contents Insurance,01/05/2013,1256387,"8,240.28",A037657,Jardine Lloyd Thompson,
North West Leicestershire ,31UH,Environmental Health,EEHL,Environmental Health & Licensing,Grant payment,01/05/2013,1256429,"5,145.00",A038469,Leicestershire County Council,
North West Leicestershire ,31UH,Finance,FINPLA,Financial Planning,Advertisement - Choice Based Lettings,01/05/2013,1256431,"185,000.00",A038418,Nottingham Community Housing,
North West Leicestershire ,31UH,Information Technology,ICT,ICT Services,ICT,01/05/2013,1256465,"3,653.96",A040459,Canon UK Ltd,
North West Leicestershire ,31UH,Street Management,ENOT,Environment Transport,charges,01/05/2013,1256475,"3,819.00",A039426,The Environment Agency, 
North West Leicestershire ,31UH,Housing,HRAHM,HRA Housing Management,Energy Survey,01/05/2013,1256706,"1,768.00",A039091,Energico,
North West Leicestershire ,31UH,Street Management,ENOGT,Environment General Technician,Grant payment,01/05/2013,1256707,"8,438.55",A034059,Leicestershire County Council,
North West Leicestershire ,31UH,Information Technology,ICT,ICT Services,Photocopiers and consumables,01/05/2013,1256730,"1,167.59",A001301,The Danwood Group Ltd,
North West Leicestershire ,31UH,Finance,FINPLA,Financial Planning,HRA subsidy,01/05/2013,1256737,"91,303.69",A028518,Department for Communities & Local Government,
North West Leicestershire ,31UH,Finance,FINPLA,Financial Planning,HRA subsidy,01/05/2013,1256775,"1,197,146.00",A028518,Department for Communities & Local Government,
North West Leicestershire ,31UH,Leisure & Culture,CULTEV,Cultural Services Arts & Events,Funding,01/05/2013,1256792,"2,695.00",A039419,Rampz Community Group,
North West Leicestershire ,31UH,Leisure & Culture,CULTEV,Cultural Services Arts & Events,Funding,01/05/2013,1256793,"2,550.00",A039346,Coalville ABC,
North West Leicestershire ,31UH,Leisure & Culture,CULTEV,Cultural Services Arts & Events,Funding,01/05/2013,1256794,"9,250.00",A040478,Worth-it Projects (social enterprise),
North West Leicestershire ,31UH,Finance,EXCH,Exchequer Services,Supply of Temporary Staff,08/05/2013,1256822,"11,128.13",A036958,Comensura Limited,
North West Leicestershire ,31UH,Neighbourhoods & Communities,NACCS,N & C Community Safety,Community Centre,08/05/2013,1256823,"5,738.00",A027517,Agar Nook Community Association,
North West Leicestershire ,31UH,Leisure & Culture,LCM,Leisure & Cult Mangt,Claim,08/05/2013,1256824,894.00,A027454,Measham Leisure Centre,
North West Leicestershire ,31UH,Neighbourhoods & Communities,NACCS,N & C Community Safety,Home Safety Assessment,08/05/2013,1256825,"2,500.00",A039090,Safe Start-Home Safety,
North West Leicestershire ,31UH,Leisure & Culture,CULTYP,Cultural Services Children & YoungPeople,Home Visiting Scheme,08/05/2013,1256826,"8,522.60",A000780,Homestart (N.W. Leics),
North West Leicestershire ,31UH,Leisure & Culture,CULTYP,Cultural Services Children & YoungPeople,Home Visiting Scheme,08/05/2013,1256827,"7,762.40",A000780,Homestart (N.W. Leics),
North West Leicestershire ,31UH,Leisure & Culture,CULTYP,Cultural Services Children & YoungPeople,Home Visiting Scheme,08/05/2013,1256828,"1,661.40",A000780,Homestart (N.W. Leics),
North West Leicestershire ,31UH,Leisure & Culture,CULTYP,Cultural Services Children & YoungPeople,Rent payments,08/05/2013,1256829,"5,225.00",A000950,Leicestershire County Council,
North West Leicestershire ,31UH,Leisure & Culture,CULTYP,Cultural Services Children & YoungPeople,Rent payments,08/05/2013,1256830,"24,088.54",A000950,Leicestershire County Council,
North West Leicestershire ,31UH,Leisure & Culture,CULTYP,Cultural Services Children & YoungPeople,Voluntary services,08/05/2013,1256831,"8,000.00",A001208,MRC Community Action,
North West Leicestershire ,31UH,Leisure & Culture,CULTYP,Cultural Services Children & YoungPeople,Home Visiting Scheme,08/05/2013,1256832,"1,642.50",A000780,Homestart (N.W. Leics),
North West Leicestershire ,31UH,Leisure & Culture,CULTYP,Cultural Services Children & YoungPeople,Home Visiting Scheme,08/05/2013,1256833,"5,579.80",A000780,Homestart (N.W. Leics),
North West Leicestershire ,31UH,Leisure & Culture,CULTYP,Cultural Services Children & YoungPeople,Home Visiting Scheme,08/05/2013,1256834,"7,300.00",A000780,Homestart (N.W. Leics),
North West Leicestershire ,31UH,Leisure & Culture,CULTYP,Cultural Services Children & YoungPeople,Support fathers and working families,08/05/2013,1256835,"1,789.50",A039179,The VERY Idea,
North West Leicestershire ,31UH,Leisure & Culture,CULTYP,Cultural Services Children & YoungPeople,Coomunication and Literacy,08/05/2013,1256836,"8,575.00",A039092,The Mighty Creatives,
North West Leicestershire ,31UH,Environmental Health,EES,Environmental Services,Prospect Leicestershire,08/05/2013,1256949,"5,914.68",A008631,Harborough District Council,
North West Leicestershire ,31UH,Environmental Health,EES,Environmental Services,Training,08/05/2013,1256975,713.06,A000770,Hinckley & Bosworth Borough Council,
North West Leicestershire ,31UH,Housing Repairs,HRAHRM,HRA Housing Repairs & Maintenance,Decent homes payment,08/05/2013,1256994,"479,162.68",A039973,Lovell Partnerships Ltd,
North West Leicestershire ,31UH,Housing Repairs,HRAHRM,HRA Housing Repairs & Maintenance,Decent homes payment,08/05/2013,1256995,"19,539.89",A039973,Lovell Partnerships Ltd,
North West Leicestershire ,31UH,Housing Repairs,HRAHRM,HRA Housing Repairs & Maintenance,Decent homes payment,08/05/2013,1256996,"9,032.10",A039973,Lovell Partnerships Ltd,
North West Leicestershire ,31UH,Environmental Health,EES,Environmental Services,Building repairs & maintenance,08/05/2013,1256997,"1,497.49",A001092,John Merison BMC Ltd,
North West Leicestershire ,31UH,Property Services,PROPCL,Property Commercial Lettings,IT - Telephone and computing,08/05/2013,1257021,701.82,A000233,British Telecommunications Plc,
North West Leicestershire ,31UH,Legal & Democratic,LDELC,Electoral & Land Charges,IT - Scanning equipment,08/05/2013,1257098,"11,750.00",A034157,Idox Software Ltd,
North West Leicestershire ,31UH,Housing,HRACS,HRA Customer Services,Mail Services,15/05/2013,1257105,775.00,A001418,Royal Mail Group Plc,
North West Leicestershire ,31UH,Finance,EXCH,Exchequer Services,Supply of Temporary Staff,15/05/2013,1257137,"12,128.28",A036958,Comensura Limited,
North West Leicestershire ,31UH,Environmental Health,EEHL,Environmental Health & Licensing,Grant payment,15/05/2013,1257142,"3,269.00",A038469,Leicestershire County Council,
North West Leicestershire ,31UH,Environmental Health,EEHL,Environmental Health & Licensing,Plumbing and Heating Contractor,15/05/2013,1257143,"2,601.00",A000922,C V Lane & Son,
North West Leicestershire ,31UH,Environmental Health,EES,Environmental Services,Training,15/05/2013,1257149,"1,372.92",A000770,Hinckley & Bosworth Borough Council,
North West Leicestershire ,31UH,Legal & Democratic,LDLS,Legal Services,Contracting Practioner/Project Managemen,15/05/2013,1257168,"2,568.46",A040172,Q-Active Ltd,
North West Leicestershire ,31UH,Leisure Centres,HPLC,Hood Park Leisure Centre,Water and Sewerage services,15/05/2013,1257201,"1,127.32",A001468,Severn Trent Water Limited,
North West Leicestershire ,31UH,Neighbourhoods & Communities,NACN,N & C Neighbourhoods,Grant payment,15/05/2013,1257219,600.00,A030997,Greenhill Tenants & Residents Association,
North West Leicestershire ,31UH,Neighbourhoods & Communities,NACN,N & C Neighbourhoods,grant payment,15/05/2013,1257220,600.00,A030567,Riverview Tenants Association,
North West Leicestershire ,31UH,Neighbourhoods & Communities,NACN,N & C Neighbourhoods,Grant payment,15/05/2013,1257221,600.00,A011717,Linford & Verdon Tenants and,
North West Leicestershire ,31UH,Neighbourhoods & Communities,NACN,N & C Neighbourhoods,Grant payment,15/05/2013,1257222,600.00,A039705,FRIENDS OF WESTFIELDS,
North West Leicestershire ,31UH,Neighbourhoods & Communities,NACN,N & C Neighbourhoods,Grant payment,15/05/2013,1257223,600.00,A035881,Willesley Estate TARA,
North West Leicestershire ,31UH,Housing,HRAPBS,HRA Performance & Business Support,Travel,15/05/2013,1257236,"3,011.00",A021569,Coalville Yellow Cabs Ltd,
North West Leicestershire ,31UH,Housing,HRAPBS,HRA Performance & Business Support,Travel,15/05/2013,1257237,"1,791.00",A021569,Coalville Yellow Cabs Ltd,
North West Leicestershire ,31UH,Legal & Democratic,LDLS,Legal Services,Barrister at Law,15/05/2013,1257287,"1,000.00",A039444,Mr Timothy Leader,
North West Leicestershire ,31UH,Neighbourhoods & Communities,NACN,N & C Neighbourhoods,Grant payment,15/05/2013,1257288,"1,720.83",A033349,Age Concern Leicestershire and Rutland,
North West Leicestershire ,31UH,Leisure & Culture,CULTIC,Cultural Services TIC,entertainment,15/05/2013,1257289,"5,085.00",A034672,Ashby Dramatic Society,
North West Leicestershire ,31UH,Neighbourhoods & Communities,NACN,N & C Neighbourhoods,Grants,15/05/2013,1257290,"4,500.00",A001039,Mantle Community Arts Limited,
North West Leicestershire ,31UH,Information Technology,ICT,ICT Services,ICT,15/05/2013,1257293,"3,877.96",A040459,Canon UK Ltd,
North West Leicestershire ,31UH,Information Technology,ICT,ICT Services,Telephony and computing,15/05/2013,1257294,"5,799.73",A008908,Virgin Media Business,
North West Leicestershire ,31UH,Legal & Democratic,LDLS,Legal Services,Professional Services,15/05/2013,1257296,"3,947.65",A040126,Rachael Vowles,
North West Leicestershire ,31UH,Environmental Health,EEHL,Environmental Health & Licensing,Licence Hearing,15/05/2013,1257297,540.00,A040284,Licensing Matters Ltd,
North West Leicestershire ,31UH,Environmental Health,EES,Environmental Services,Grant payment,15/05/2013,1257518,"1,217.00",A038469,Leicestershire County Council,
North West Leicestershire ,31UH,Housing Repairs,HRAHRM,HRA Housing Repairs & Maintenance,IT - Software,15/05/2013,1257536,570.00,A002968,Capita Business Services Ltd,
North West Leicestershire ,31UH,Housing Repairs,HRAHRM,HRA Housing Repairs & Maintenance,Fuel servicing (Hsg Maintenance),15/05/2013,1257540,"3,943.71",A035675,Elite Sweep Service,
North West Leicestershire ,31UH,Finance,FINPLA,Financial Planning,Insurance policies,15/05/2013,1257541,"1,000.00",A001836,Zurich Insurance Company,
North West Leicestershire ,31UH,Housing Repairs,HRAHRM,HRA Housing Repairs & Maintenance,Decent homes payment,15/05/2013,1257658,"104,407.49",A039980,Kier Services Maintenance East Ltd,
North West Leicestershire ,31UH,Leisure Centres,HLC,Hermitage Leisure Centre,Water and Sewerage services,15/05/2013,1257659,"1,388.15",A001468,Severn Trent Water Limited,
North West Leicestershire ,31UH,Neighbourhoods & Communities,NACN,N & C Neighbourhoods,Funding ,15/05/2013,1257663,"4,753.76",A030553,Sir John Moore Foundation,
North West Leicestershire ,31UH,Legal & Democratic,LDLS,Legal Services,Software,15/05/2013,1257666,952.74,A037595,Thomson Reuters (Professional) UK Limited,
North West Leicestershire ,31UH,Legal & Democratic,LDLS,Legal Services,Legal services - town planning,15/05/2013,1257669,"4,965.00",A016315,Marrons Consultancies Limited,
North West Leicestershire ,31UH,Street Management,ENOT,Environment Transport,Road fund licences,22/05/2013,1257715,"1,990.00",A008559,Post Office Limited,
North West Leicestershire ,31UH,Finance,EXCH,Exchequer Services,Supply of Temporary Staff,22/05/2013,1257748,"7,964.55",A036958,Comensura Limited,
North West Leicestershire ,31UH,Housing Repairs,HRAHRM,HRA Housing Repairs & Maintenance,Building services,22/05/2013,1257784,"6,436.78",A033342,J Tomlinson Ltd,
North West Leicestershire ,31UH,Housing,HRAHM,HRA Housing Management,Grants,22/05/2013,1257787,"120,000.00",A000530,East Midlands Housing Assocn,
North West Leicestershire ,31UH,Street Management,ESS,Environment - Street Scene,Boarding Kennels,,1257793,"1,355.46",A000385,College Garth Boarding Kennels,
North West Leicestershire ,31UH,Leisure Centres,HPLC,Hood Park Leisure Centre,Energy - Electricity - Contract 1,22/05/2013,1257806,"1,038.17",A030266,Southern Electric,
North West Leicestershire ,31UH,Leisure Centres,HLC,Hermitage Leisure Centre,Telecommunication - Line Rental,22/05/2013,1257823,580.83,A035373,Virgin Media Business,
North West Leicestershire ,31UH,Finance,FINPLA,Financial Planning,HRA subsidy,21/05/2013,1257917,"1,923,090.00",A028518,Department for Communities & Local Government,
North West Leicestershire ,31UH,Finance,EXCH,Exchequer Services,IT - Telephone and computing,21/05/2013,1257920,"5,304.80",A000233,British Telecommunications Plc,
North West Leicestershire ,31UH,Corporate Director,HR,Human Resources,Criminal Records Checks,21/05/2013,1257921,660.00,A027625,Criminal Records Bureau T/A The Disclosure & Barring Service,
North West Leicestershire ,31UH,Environmental Health,EES,Environmental Services,Boarding Kennels,22/05/2013,1257859,"1,355.46",A000385,College Garth Boarding Kennels,
North West Leicestershire ,31UH,Finance,EXCH,Exchequer Services,BOILER REPLACEMENT,22/05/2013,1257860,"1,554.45",A031787,Laker BMS Ltd,
North West Leicestershire ,31UH,Housing,HRAHM,HRA Housing Management,Franking machine leasing,22/05/2013,1257869,"2,552.28",A031590,Neopost Finance Limited,
North West Leicestershire ,31UH,Property Services,PROPFM,Property Facilities Management,Water and Sewerage services,22/05/2013,1257883,"1,533.27",A001468,Severn Trent Water Limited,
North West Leicestershire ,31UH,Property Services,PROPFM,Property Facilities Management,Energy - Electricity - Contract 1,22/05/2013,1257884,"3,712.71",A030266,Southern Electric,
North West Leicestershire ,31UH,Leisure & Culture,CULTYP,Cultural Services Children & YoungPeople,home safety advice/equipment/assessment,22/05/2013,1257906,"3,712.00",A039074,The Firebird Trust Ltd,
North West Leicestershire ,31UH,Finance,EXCH,Exchequer Services,Electricity,22/05/2013,1257911,"8,233.11",A034733,British Gas Business,
North West Leicestershire ,31UH,Street Management,ENOT,Environment Transport,Water and Sewerage services,22/05/2013,1257912,"1,313.33",A001468,Severn Trent Water Limited,
North West Leicestershire ,31UH,Housing,HRAHM,HRA Housing Management,Fuel - solid,22/05/2013,1257913,"1,659.79",A031928,Coal4Energy Ltd,
North West Leicestershire ,31UH,Finance,FINPLA,Financial Planning,Insurance,22/05/2013,1257924,"255,916.65",A001835,Zurich Municipal,
North West Leicestershire ,31UH,Finance,FINPLA,Financial Planning,Insurance,22/05/2013,1257925,"8,738.97",A001835,Zurich Municipal,
North West Leicestershire ,31UH,Finance,FINPLA,Financial Planning,Insurance,22/05/2013,1257926,"8,682.93",A001835,Zurich Municipal,
North West Leicestershire ,31UH,Leisure & Culture,LCM,Leisure & Cult Mangt,education,22/05/2013,1258110,"3,022.00",A036769,Centre for Fun and Families Ltd,
North West Leicestershire ,31UH,Finance,EXCH,Exchequer Services,Supply of Temporary Staff,29/05/2013,1258119,"9,634.90",A036958,Comensura Limited,
North West Leicestershire ,31UH,Environmental Health,EES,Environmental Services,Community Town Team to improve town cent,29/05/2013,1258120,"10,000.00",A040519,Coalville Town Team Ltd,
North West Leicestershire ,31UH,Communications,CS,Corporate - Customer Services,Post -Franking Machines,29/05/2013,1258139,"5,000.00",A000079,Neopost Limited,
North West Leicestershire ,31UH,Planning & Development,ECCTV,Environment - Town Centre/CCTV,Energy - Electricity - Contract 1,29/05/2013,1258171,"1,064.00",A030266,Southern Electric,
North West Leicestershire ,31UH,Environmental Health,EEHL,Environmental Health & Licensing,Building repairs & maintenance,29/05/2013,1258202,"1,587.50",A001092,John Merison BMC Ltd,
North West Leicestershire ,31UH,Environmental Health,EEHL,Environmental Health & Licensing,Grant payment,29/05/2013,1258203,"2,979.40",A038469,Leicestershire County Council,
North West Leicestershire ,31UH,Environmental Health,EEHL,Environmental Health & Licensing,Plumbing and Heating Contractor,29/05/2013,1258204,"3,509.00",A000922,C V Lane & Son,
North West Leicestershire ,31UH,Environmental Health,EEHL,Environmental Health & Licensing,grant payment,29/05/2013,1258205,"1,120.00",A038916,MFW Building Services Ltd,
North West Leicestershire ,31UH,Environmental Health,EEHL,Environmental Health & Licensing,Building repairs & maintenance,29/05/2013,1258206,"1,615.40",A001092,John Merison BMC Ltd,
North West Leicestershire ,31UH,Finance,EXCH,Exchequer Services,Catalogue stocks,28/05/2013,1258266,"6,908.87",A000958,ESPO,
North West Leicestershire ,31UH,Housing Repairs,HRAHRM,HRA Housing Repairs & Maintenance,Housing Repairs,28/05/2013,1258272,"65,534.26",A036453,Collective Enterprises Ltd,
North West Leicestershire ,31UH,Finance,FINPLA,Financial Planning,Finance Company,28/05/2013,1258275,"2,200,000.00",A012414,Royal Bank Of Scotland,
North West Leicestershire ,31UH,Neighbourhoods & Communities,NACCS,N & C Community Safety,Children Centre funding,29/05/2013,1258233,"3,991.20",A037570,South & West Leicestershire CAB,
North West Leicestershire ,31UH,Housing,HRAHM,HRA Housing Management,Consultancy&training -housing/tenants,29/05/2013,1258234,608.24,A030740,Priority Estates Project Limited,
North West Leicestershire ,31UH,Finance,EXCH,Exchequer Services,Supply of Temporary Staff,29/05/2013,1258394,"7,362.75",A036958,Comensura Limited,
North West Leicestershire ,31UH,#N/A,HRAHRM ,#N/A,BOILER REPLACEMENT,01/05/2013,1256589,830.00,A031787,Laker BMS Ltd,
North West Leicestershire ,31UH,#N/A,HRAHRM ,#N/A,BOILER REPLACEMENT,01/05/2013,1256614,"1,107.29",A031787,Laker BMS Ltd,
North West Leicestershire ,31UH,#N/A,HRAHRM ,#N/A,BOILER REPLACEMENT,01/05/2013,1256615,"1,580.11",A031787,Laker BMS Ltd,
North West Leicestershire ,31UH,#N/A,HRAHRM ,#N/A,BOILER REPLACEMENT,01/05/2013,1256627,721.66,A031787,Laker BMS Ltd,
North West Leicestershire ,31UH,#N/A,HRAHRM ,#N/A,Gas & Electricity - Gas installation,08/05/2013,1257037,622.33,A026237,British Gas Trading Limited,
North West Leicestershire ,31UH,#N/A,HRAHRM ,#N/A,Composite Door Sets,08/05/2013,1257042,539.91,A038041,I G Doors Limited,
North West Leicestershire ,31UH,#N/A,HRAHRM ,#N/A,BOILER REPLACEMENT,08/05/2013,1257025,823.40,A031787,Laker BMS Ltd,
North West Leicestershire ,31UH,#N/A,HRAHRM ,#N/A,BOILER REPLACEMENT,08/05/2013,1257030,"1,043.70",A031787,Laker BMS Ltd,
North West Leicestershire ,31UH,#N/A,HRAHRM ,#N/A,Rewire Programme,15/05/2013,1257171,"2,102.66",A038131,Lovell Respond,
North West Leicestershire ,31UH,#N/A,HRAHRM ,#N/A,Rewire Programme,15/05/2013,1257172,"2,325.75",A038131,Lovell Respond,
North West Leicestershire ,31UH,#N/A,HRAHRM ,#N/A,Rewire Programme,15/05/2013,1257173,"2,601.76",A038131,Lovell Respond,
North West Leicestershire ,31UH,#N/A,HRAHRM ,#N/A,Rewire Programme,15/05/2013,1257174,"2,255.51",A038131,Lovell Respond,
North West Leicestershire ,31UH,#N/A,HRAHRM ,#N/A,Rewire Programme,15/05/2013,1257175,"2,102.66",A038131,Lovell Respond,
North West Leicestershire ,31UH,#N/A,HRAHRM ,#N/A,technical engineering design,01/05/2013,1256720,"38,651.67",A040470,Fulcrum Pipelines Limited,
North West Leicestershire ,31UH,#N/A,HRAHRM ,#N/A,Rewire Programme,15/05/2013,1257176,"2,150.90",A038131,Lovell Respond,
North West Leicestershire ,31UH,#N/A,HRAHRM ,#N/A,Rewire Programme,15/05/2013,1257177,"2,277.51",A038131,Lovell Respond,
North West Leicestershire ,31UH,#N/A,HRAHRM ,#N/A,Rewire Programme,15/05/2013,1257178,"2,102.66",A038131,Lovell Respond,
North West Leicestershire ,31UH,#N/A,HRAHRM ,#N/A,Rewire Programme,15/05/2013,1257179,"3,026.53",A038131,Lovell Respond,
North West Leicestershire ,31UH,#N/A,HRAHRM ,#N/A,Rewire Programme,15/05/2013,1257180,"2,466.27",A038131,Lovell Respond,
North West Leicestershire ,31UH,#N/A,HRAHRM ,#N/A,Fuel servicing (Hsg Maintenance),15/05/2013,1257452,"1,890.00",A035675,Elite Sweep Service,
North West Leicestershire ,31UH,#N/A,HRAHRM ,#N/A,BOILER REPLACEMENT,15/05/2013,1257453,535.36,A031787,Laker BMS Ltd,
North West Leicestershire ,31UH,#N/A,HRAHRM ,#N/A,BOILER REPLACEMENT,15/05/2013,1257455,"2,400.00",A031787,Laker BMS Ltd,
North West Leicestershire ,31UH,#N/A,HRAHRM ,#N/A,BOILER REPLACEMENT,15/05/2013,1257460,"1,834.00",A031787,Laker BMS Ltd,
North West Leicestershire ,31UH,#N/A,HRAHRM ,#N/A,BOILER REPLACEMENT,15/05/2013,1257474,868.51,A031787,Laker BMS Ltd,
North West Leicestershire ,31UH,#N/A,HRAHRM ,#N/A,BOILER REPLACEMENT,15/05/2013,1257475,768.80,A031787,Laker BMS Ltd,
North West Leicestershire ,31UH,#N/A,HRAHRM ,#N/A,BOILER REPLACEMENT,15/05/2013,1257483,"1,322.20",A031787,Laker BMS Ltd,
North West Leicestershire ,31UH,#N/A,HRAHRM ,#N/A,BOILER REPLACEMENT,15/05/2013,1257484,508.22,A031787,Laker BMS Ltd,
North West Leicestershire ,31UH,#N/A,HRAHRM ,#N/A,Rent payments,15/05/2013,1257553,"2,504.44",A000950,Leicestershire County Council,
North West Leicestershire ,31UH,#N/A,HRAHRM ,#N/A,BOILER REPLACEMENT,15/05/2013,1257495,521.78,A031787,Laker BMS Ltd,
North West Leicestershire ,31UH,#N/A,HRAHRM ,#N/A,BOILER REPLACEMENT,15/05/2013,1257496,755.72,A031787,Laker BMS Ltd,
North West Leicestershire ,31UH,#N/A,HRAHRM ,#N/A,Gas & Electricity - Gas installation,15/05/2013,1257694,622.33,A026237,British Gas Trading Limited,
North West Leicestershire ,31UH,#N/A,HRAHRM ,#N/A,Gas & Electricity - Gas installation,15/05/2013,1257699,622.33,A026237,British Gas Trading Limited,
North West Leicestershire ,31UH,#N/A,HRAHRM ,#N/A,Gas & Electricity - Gas installation,15/05/2013,1257700,622.33,A026237,British Gas Trading Limited,
North West Leicestershire ,31UH,#N/A,HRAHRM ,#N/A,Gas & Electricity - Gas installation,15/05/2013,1257701,622.33,A026237,British Gas Trading Limited,
North West Leicestershire ,31UH,#N/A,HRAHRM ,#N/A,Gas & Electricity - Gas installation,15/05/2013,1257702,622.33,A026237,British Gas Trading Limited,
North West Leicestershire ,31UH,#N/A,HRAHRM ,#N/A,Gas & Electricity - Gas installation,15/05/2013,1257703,622.33,A026237,British Gas Trading Limited,
North West Leicestershire ,31UH,#N/A,HRAHRM ,#N/A,Gas & Electricity - Gas installation,15/05/2013,1257704,622.33,A026237,British Gas Trading Limited,
North West Leicestershire ,31UH,#N/A,HRAHRM ,#N/A,Gas & Electricity - Gas installation,15/05/2013,1257705,622.33,A026237,British Gas Trading Limited,
North West Leicestershire ,31UH,#N/A,HRAHRM ,#N/A,Gas & Electricity - Gas installation,15/05/2013,1257695,622.33,A026237,British Gas Trading Limited,
North West Leicestershire ,31UH,#N/A,HRAHRM ,#N/A,Gas & Electricity - Gas installation,15/05/2013,1257696,622.33,A026237,British Gas Trading Limited,
North West Leicestershire ,31UH,#N/A,HRAHRM ,#N/A,Gas & Electricity - Gas installation,15/05/2013,1257697,622.33,A026237,British Gas Trading Limited,
North West Leicestershire ,31UH,#N/A,HRAHRM ,#N/A,Gas & Electricity - Gas installation,15/05/2013,1257698,622.33,A026237,British Gas Trading Limited,
North West Leicestershire ,31UH,#N/A,HRAHRM ,#N/A,Gas & Electricity - Gas installation,15/05/2013,1257674,622.33,A026237,British Gas Trading Limited,
North West Leicestershire ,31UH,#N/A,HRAHRM ,#N/A,Gas & Electricity - Gas installation,15/05/2013,1257675,622.33,A026237,British Gas Trading Limited,
North West Leicestershire ,31UH,#N/A,HRAHRM ,#N/A,Gas & Electricity - Gas installation,15/05/2013,1257676,622.33,A026237,British Gas Trading Limited,
North West Leicestershire ,31UH,#N/A,HRAHRM ,#N/A,Gas & Electricity - Gas installation,15/05/2013,1257677,622.33,A026237,British Gas Trading Limited,
North West Leicestershire ,31UH,#N/A,HRAHRM ,#N/A,Gas & Electricity - Gas installation,15/05/2013,1257678,622.33,A026237,British Gas Trading Limited,
North West Leicestershire ,31UH,#N/A,HRAHRM ,#N/A,Gas & Electricity - Gas installation,15/05/2013,1257679,622.33,A026237,British Gas Trading Limited,
North West Leicestershire ,31UH,#N/A,HRAHRM ,#N/A,Gas & Electricity - Gas installation,15/05/2013,1257680,622.33,A026237,British Gas Trading Limited,
North West Leicestershire ,31UH,#N/A,HRAHRM ,#N/A,Gas & Electricity - Gas installation,15/05/2013,1257681,622.33,A026237,British Gas Trading Limited,
North West Leicestershire ,31UH,#N/A,HRAHRM ,#N/A,Gas & Electricity - Gas installation,15/05/2013,1257682,622.33,A026237,British Gas Trading Limited,
North West Leicestershire ,31UH,#N/A,HRAHRM ,#N/A,Gas & Electricity - Gas installation,15/05/2013,1257683,622.33,A026237,British Gas Trading Limited,
North West Leicestershire ,31UH,#N/A,HRAHRM ,#N/A,Gas & Electricity - Gas installation,15/05/2013,1257684,622.33,A026237,British Gas Trading Limited,
North West Leicestershire ,31UH,#N/A,HRAHRM ,#N/A,Gas & Electricity - Gas installation,15/05/2013,1257685,622.33,A026237,British Gas Trading Limited,
North West Leicestershire ,31UH,#N/A,HRAHRM ,#N/A,Gas & Electricity - Gas installation,15/05/2013,1257686,622.33,A026237,British Gas Trading Limited,
North West Leicestershire ,31UH,#N/A,HRAHRM ,#N/A,Gas & Electricity - Gas installation,15/05/2013,1257687,622.33,A026237,British Gas Trading Limited,
North West Leicestershire ,31UH,#N/A,HRAHRM ,#N/A,Gas & Electricity - Gas installation,15/05/2013,1257688,622.33,A026237,British Gas Trading Limited,
North West Leicestershire ,31UH,#N/A,HRAHRM ,#N/A,Gas & Electricity - Gas installation,15/05/2013,1257689,622.33,A026237,British Gas Trading Limited,
North West Leicestershire ,31UH,#N/A,HRAHRM ,#N/A,Gas & Electricity - Gas installation,15/05/2013,1257690,622.33,A026237,British Gas Trading Limited,
North West Leicestershire ,31UH,#N/A,HRAHRM ,#N/A,Gas & Electricity - Gas installation,15/05/2013,1257691,622.33,A026237,British Gas Trading Limited,
North West Leicestershire ,31UH,#N/A,HRAHRM ,#N/A,Gas & Electricity - Gas installation,15/05/2013,1257692,622.33,A026237,British Gas Trading Limited,
North West Leicestershire ,31UH,#N/A,HRAHRM ,#N/A,Gas & Electricity - Gas installation,15/05/2013,1257693,622.33,A026237,British Gas Trading Limited,
North West Leicestershire ,31UH,#N/A,HRAHRM ,#N/A,Gas & Electricity - Gas installation,15/05/2013,1257706,622.33,A026237,British Gas Trading Limited,
North West Leicestershire ,31UH,#N/A,HRAHRM ,#N/A,Gas & Electricity - Gas installation,15/05/2013,1257707,622.33,A026237,British Gas Trading Limited,
North West Leicestershire ,31UH,#N/A,HRAHRM ,#N/A,Gas & Electricity - Gas installation,15/05/2013,1257708,622.33,A026237,British Gas Trading Limited,
North West Leicestershire ,31UH,#N/A,HRAHRM ,#N/A,Gas & Electricity - Gas installation,22/05/2013,1258004,622.33,A026237,British Gas Trading Limited,
North West Leicestershire ,31UH,#N/A,HRAHRM ,#N/A,BOILER REPLACEMENT,22/05/2013,1258033,782.00,A031787,Laker BMS Ltd,
North West Leicestershire ,31UH,#N/A,HRAHRM ,#N/A,BOILER REPLACEMENT,22/05/2013,1258044,508.17,A031787,Laker BMS Ltd,
North West Leicestershire ,31UH,#N/A,HRAHRM ,#N/A,BOILER REPLACEMENT,29/05/2013,1258308,"1,117.42",A031787,Laker BMS Ltd,
North West Leicestershire ,31UH,#N/A,HRAHRM ,#N/A,BOILER REPLACEMENT,29/05/2013,1258309,"14,734.89",A031787,Laker BMS Ltd,
North West Leicestershire ,31UH,#N/A,HRAHRM ,#N/A,BOILER REPLACEMENT,29/05/2013,1258310,657.41,A031787,Laker BMS Ltd,
North West Leicestershire ,31UH,#N/A,HRAHRM ,#N/A,BOILER REPLACEMENT,29/05/2013,1258312,755.29,A031787,Laker BMS Ltd,
North West Leicestershire ,31UH,#N/A,HRAHRM ,#N/A,BOILER REPLACEMENT,29/05/2013,1258313,524.13,A031787,Laker BMS Ltd,
North West Leicestershire ,31UH,#N/A,HRAHRM ,#N/A,BOILER REPLACEMENT,29/05/2013,1258314,775.94,A031787,Laker BMS Ltd,
North West Leicestershire ,31UH,#N/A,HRAHRM ,#N/A,Building services,29/05/2013,1258318,997.30,A033342,J Tomlinson Ltd,
North West Leicestershire ,31UH,#N/A,HRAHRM ,#N/A,BOILER REPLACEMENT,29/05/2013,1258334,"1,070.20",A031787,Laker BMS Ltd,
North West Leicestershire ,31UH,#N/A,HRAHRM ,#N/A,Composite Door Sets,29/05/2013,1258327,828.58,A038041,I G Doors Limited,
North West Leicestershire ,31UH,#N/A,HRAHRM ,#N/A,Composite Door Sets,29/05/2013,1258328,539.91,A038041,I G Doors Limited,
North West Leicestershire ,31UH,#N/A,HRAHRM ,#N/A,Composite Door Sets,29/05/2013,1258330,539.91,A038041,I G Doors Limited,
North West Leicestershire ,31UH,#N/A,HRAHRM ,#N/A,BOILER REPLACEMENT,29/05/2013,1258343,"1,300.36",A031787,Laker BMS Ltd,
North West Leicestershire ,31UH,#N/A,HRAHRM ,#N/A,BOILER REPLACEMENT,29/05/2013,1258344,598.07,A031787,Laker BMS Ltd,
North West Leicestershire ,31UH,#N/A,HRAHRM ,#N/A,BOILER REPLACEMENT,29/05/2013,1258354,"1,208.95",A031787,Laker BMS Ltd,
North West Leicestershire ,31UH,#N/A,HRAHRM ,#N/A,BOILER REPLACEMENT,29/05/2013,1258357,"1,978.04",A031787,Laker BMS Ltd,
North West Leicestershire ,31UH,#N/A,HRAHRM ,#N/A,BOILER REPLACEMENT,29/05/2013,1258358,"1,336.15",A031787,Laker BMS Ltd,
North West Leicestershire ,31UH,Leisure Centres,HPLC,Hood Park Leisure Centre,Catalogue stocks,01/05/2013,1256052,738.00,A000958,ESPO,
North West Leicestershire ,31UH,Housing Strategy,HS,Community - Housing Strategy,Housing Management Software,01/05/2013,1256410,812.50,A037979,Abritas Limited,
North West Leicestershire ,31UH,Property Services,PROPCL,Property Commercial Lettings,Horticulture -Internal Plants,01/05/2013,1256411,552.50,A003371,Urban Planters Leicestershire (limited),
North West Leicestershire ,31UH,Property Services,PROPCL,Property Commercial Lettings,Minor Works Framework Agreement,01/05/2013,1256412,546.00,A036239,Alf Wright Construction Limited,
North West Leicestershire ,31UH,Street Management,ENOT,Environment Transport,Bags - Polythene bags manufacturer,01/05/2013,1256430,"1,443.30",A017624,BPI Recycled Products,
North West Leicestershire ,31UH,Leisure Centres,HPLC,Hood Park Leisure Centre,Support contract,01/05/2013,1256434,"2,411.00",A033326,Building Automation Solutions Limited,
North West Leicestershire ,31UH,Information Technology,ICT,ICT Services,Telecommunications Services,01/05/2013,1256467,999.00,A038473,Cable & Wireless Worldwide,
North West Leicestershire ,31UH,Corporate Director,HR,Human Resources,Medical fees,01/05/2013,1256468,731.50,A031645,Forge Health Limited,
North West Leicestershire ,31UH,Housing Repairs,HRAHRM,HRA Housing Repairs & Maintenance,Fleet Vehicle Racking Systems,01/05/2013,1256408,542.72,A036773,Edstrom of Sweden,
North West Leicestershire ,31UH,Leisure Centres,HPLC,Hood Park Leisure Centre,Sport & Leisure Equipment,01/05/2013,1256441,917.66,A000969,J P Lennard Ltd,
North West Leicestershire ,31UH,Housing Repairs,HRAHRM,HRA Housing Repairs & Maintenance,Fleet Vehicle Racking Systems,01/05/2013,1256487,550.20,A036773,Edstrom of Sweden,
North West Leicestershire ,31UH,Housing Repairs,HRAHRM,HRA Housing Repairs & Maintenance,Fleet Vehicle Racking Systems,01/05/2013,1256488,542.72,A036773,Edstrom of Sweden,
North West Leicestershire ,31UH,Leisure Centres,HLC,Hermitage Leisure Centre,Music License,01/05/2013,1256505,"2,217.02",A001300,Phonographic Performances Ltd,
North West Leicestershire ,31UH,Leisure Centres,HLC,Hermitage Leisure Centre,IT - software services,01/05/2013,1256507,"1,265.00",A024642,Gladstone MRM Ltd,
North West Leicestershire ,31UH,Leisure Centres,HLBC,Hermitage Bar & Catering,drinks wholesaler,01/05/2013,1256514,"5,711.35",A039915,LWC - Birmingham,
North West Leicestershire ,31UH,Leisure Centres,HLBC,Hermitage Bar & Catering,drinks wholesaler,01/05/2013,1256515,"1,156.39",A039915,LWC - Birmingham,
North West Leicestershire ,31UH,Leisure Centres,HLC,Hermitage Leisure Centre,Claim,01/05/2013,1256525,812.50,A027454,Measham Leisure Centre,
North West Leicestershire ,31UH,Property Services,PROPFM,Property Facilities Management,Air conditioning systems,01/05/2013,1256534,573.00,A035362,Electrum Services Limited,
North West Leicestershire ,31UH,Environmental Health,EEHL,Environmental Health & Licensing,Funding,01/05/2013,1256725,908.00,A031571,HBHC Synergy Ltd,
North West Leicestershire ,31UH,Housing,HRAPBS,HRA Performance & Business Support,Energy Saving Advice,01/05/2013,1255211,"8,450.00",A040062,EST Enterprises,
North West Leicestershire ,31UH,Finance,HOFI,Head of Finance,Parish Precepts,01/05/2013,1256788,"13,250.00",A000323,Charnwood Borough Council,
North West Leicestershire ,31UH,Finance,HOFI,Head of Finance,Training,01/05/2013,1256789,"77,635.00",A000770,Hinckley & Bosworth Borough Council,
North West Leicestershire ,31UH,Street Management,ENOT,Environment Transport,Refuse Vehicle Hire,01/05/2013,1256685,"1,750.00",A038553,M6 Vehicle Hire,
North West Leicestershire ,31UH,Planning & Development,EPP,Environment Planning Policy,scanning software,01/05/2013,1256677,"1,440.00",A040418,Clarity Information Solutions,
North West Leicestershire ,31UH,Finance,EXCH,Exchequer Services,Computer Software,08/05/2013,1256847,896.20,A010859,Selima Limited,
North West Leicestershire ,31UH,Property Services,PROPCL,Property Commercial Lettings,Postal Supplies -Franking Machines,08/05/2013,1256873,"2,020.00",A008204,Purchase Power,
North West Leicestershire ,31UH,Leisure Centres,HLC,Hermitage Leisure Centre,Swimming Teaching,08/05/2013,1256902,699.97,A001616,Swimming Teachers Association Ltd,
North West Leicestershire ,31UH,Housing,HRAPBS,HRA Performance & Business Support,Training,01/05/2013,1256163,"6,959.73",A000770,Hinckley & Bosworth Borough Council,
North West Leicestershire ,31UH,Housing Repairs,HRAHRM,HRA Housing Repairs & Maintenance,Consultancy Services - Surveying,02/05/2013,1256708,"282,080.00",A032547,Savills Commercial Limited,
North West Leicestershire ,31UH,Street Management,ENOT,Environment Transport,Tyres,08/05/2013,1256803,501.02,A034248,Stapletons Tyre Service Ltd,
North West Leicestershire ,31UH,Street Management,ENOT,Environment Transport,Gas - heating,08/05/2013,1256806,788.67,A032686,Calor Gas Limited,
North West Leicestershire ,31UH,Corporate Director,HR,Human Resources,Advertising Agency,08/05/2013,1256819,937.41,A001395,Euro RSCG People T/A Havas People Ltd,
North West Leicestershire ,31UH,Information Technology,ICT,ICT Services,IT solutions,08/05/2013,1256651,"59,228.88",A034753,ANS Group Plc,
North West Leicestershire ,31UH,Information Technology,ICT,ICT Services,IT solutions,08/05/2013,1256676,"5,500.00",A034753,ANS Group Plc,
North West Leicestershire ,31UH,Street Management,ENOT,Environment Transport,Vehicles,08/05/2013,1256814,"13,872.35",A039232,Polar Ford Barnsley,
North West Leicestershire ,31UH,Street Management,ENOT,Environment Transport,Vehicles,08/05/2013,1256815,"13,872.35",A039232,Polar Ford Barnsley,
North West Leicestershire ,31UH,Street Management,ENOT,Environment Transport,Vehicle parts & services,,1256966,628.53,A035291,Mertrux Ltd,
North West Leicestershire ,31UH,Leisure Centres,HLC,Hermitage Leisure Centre,Lift Maintenance,08/05/2013,1256900,537.87,A036300,Hytrac Lifts Limited,
North West Leicestershire ,31UH,Street Management,ENOT,Environment Transport,Vehicle & Electrical Parts,08/05/2013,1254291,900.00,A035550,C F Parkinson Limited,
North West Leicestershire ,31UH,Leisure Centres,HLC,Hermitage Leisure Centre,Energy Management services,08/05/2013,1256869,"5,547.00",A034390,ENER.G Combined Power Ltd,
North West Leicestershire ,31UH,Housing,HRAPBS,HRA Performance & Business Support,Printing & Mailing,08/05/2013,1256876,"1,035.11",A036087,Print Search Chester Limited,
North West Leicestershire ,31UH,Housing Strategy,HS,Community - Housing Strategy,Grants,08/05/2013,1256932,"1,030.00",A006912,Midlands Rural Housing Association,
North West Leicestershire ,31UH,Housing,HRAPBS,HRA Performance & Business Support,Printing & Mailing,08/05/2013,1256879,695.00,A036087,Print Search Chester Limited,
North West Leicestershire ,31UH,Leisure Centres,HLC,Hermitage Leisure Centre,Painting & Decorators,08/05/2013,1256916,"1,870.00",A001069,Mclean Decorators Ltd,
North West Leicestershire ,31UH,Leisure Centres,HLC,Hermitage Leisure Centre,Leisure Merchandise -Swimming Awards,08/05/2013,1256904,521.98,A001837,ASA Awards,
North West Leicestershire ,31UH,Street Management,ENOT,Environment Transport,Waste - Waste handling equipment manufac,08/05/2013,1256981,"168,429.00",A017895,Geesink Norba Limited,
North West Leicestershire ,31UH,Street Management,ENOT,Environment Transport,Waste - Waste handling equipment manufac,08/05/2013,1256984,"168,429.00",A017895,Geesink Norba Limited,
North West Leicestershire ,31UH,Finance,HOFI,Head of Finance,Training,08/05/2013,1257074,775.00,A000770,Hinckley & Bosworth Borough Council,
North West Leicestershire ,31UH,Information Technology,ICT,ICT Services,Paper & Boards,08/05/2013,1257014,633.72,A038178,Antalis Limited,
North West Leicestershire ,31UH,Street Management,ENOT,Environment Transport,Vehicles - Tyre Supplier,15/05/2013,1257126,"3,840.00",A033268,Bandvulc Tyres Ltd,
North West Leicestershire ,31UH,Street Management,ENOP,Environment Parks,Grounds Maintenance -Lanscaping tools,08/05/2013,1256712,550.27,A030744,Groundsman Tools & Supplies,
North West Leicestershire ,31UH,Street Management,ENOT,Environment Transport,Fuel purchases,15/05/2013,1257109,632.40,A034942,Pace Petroleum Ltd,
North West Leicestershire ,31UH,Property Services,PROPCL,Property Commercial Lettings,Subscriptions - Annual & Books,08/05/2013,1256848,635.00,A033386,RICS,
North West Leicestershire ,31UH,Finance,HOFI,Head of Finance,Training,08/05/2013,1257022,"17,197.00",A000770,Hinckley & Bosworth Borough Council,
North West Leicestershire ,31UH,Housing,HRAOPS,HRA Older Persons Service,Rent payments,15/05/2013,1257191,538.76,A000950,Leicestershire County Council,
North West Leicestershire ,31UH,Leisure Centres,HLC,Hermitage Leisure Centre,Sound & Lighting,15/05/2013,1257200,835.00,A027592,Lux Technical Ltd,
North West Leicestershire ,31UH,Street Management,ENOT,Environment Transport,Recycling vehicle leasing & parts,15/05/2013,1257238,"1,763.18",A001647,Terberg Matec UK Limited,
North West Leicestershire ,31UH,Leisure Centres,CDCC,Castle Donington Community College,Portable accommodation; secure storage,15/05/2013,1257248,505.72,A005413,Elliott Group Limited,
North West Leicestershire ,31UH,Street Management,ENOT,Environment Transport,Fire Detection & Security Systems,15/05/2013,1257144,550.22,A028261,TECSERV UK LIMITED,
North West Leicestershire ,31UH,Chief Exec,CHEX,Chief Executive,professional charges,15/05/2013,1257166,"1,289.11",A039356,Broadsted Associates Ltd,
North West Leicestershire ,31UH,Housing Strategy,HS,Community - Housing Strategy,Training,15/05/2013,1257182,600.00,A033578,The Bridge,
North West Leicestershire ,31UH,Leisure Centres,HLC,Hermitage Leisure Centre,Till and Credit Card Rolls,15/05/2013,1257256,680.00,A025712,MHG (Supplies) Ltd,
North West Leicestershire ,31UH,Leisure Centres,HLC,Hermitage Leisure Centre,Security Services,15/05/2013,1257258,540.00,A037299,Security Alert UK,
North West Leicestershire ,31UH,Leisure Centres,HLBC,Hermitage Bar & Catering,Catering supplies,15/05/2013,1257269,560.73,A000218,Briers Butchers Limited,
North West Leicestershire ,31UH,Housing,HRAHM,HRA Housing Management,Bed & Breakfast,15/05/2013,1256946,560.00,A032364,Pinewood Lodge,
North West Leicestershire ,31UH,Housing,HRAHM,HRA Housing Management,Bed & Breakfast,15/05/2013,1256947,780.00,A032364,Pinewood Lodge,
North West Leicestershire ,31UH,Finance,FINPLA,Financial Planning,IT - software services,15/05/2013,1257000,"1,907.00",A025004,Consilium Technologies,
North West Leicestershire ,31UH,Housing,HRAHM,HRA Housing Management,Consultancy&training -housing/tenants,15/05/2013,1254940,651.50,A030740,Priority Estates Project Limited,
North West Leicestershire ,31UH,Housing,HRAHM,HRA Housing Management,IT Equipment & Services,15/05/2013,1255017,564.00,A036738,Viglen Limited,
North West Leicestershire ,31UH,Housing,HRAHM,HRA Housing Management,Consultancy&training -housing/tenants,15/05/2013,1256416,609.00,A030740,Priority Estates Project Limited,
North West Leicestershire ,31UH,Street Management,ENOT,Environment Transport,Vehicle parts & services,15/05/2013,1256966,628.53,A035291,Mertrux Ltd,
North West Leicestershire ,31UH,Street Management,ENOT,Environment Transport,Fuel purchases,15/05/2013,1257110,"19,889.30",A034942,Pace Petroleum Ltd,
North West Leicestershire ,31UH,Planning & Development,EBC,Building Control,Consultancy Fees ,15/05/2013,1257188,"1,764.00",A027423,Leicestershire County Council,
North West Leicestershire ,31UH,Leisure & Culture,SPA,Sport & Physical Activity,Catalogue stocks,15/05/2013,1257199,"1,054.00",A000958,ESPO,
North West Leicestershire ,31UH,Information Technology,ICT,ICT Services,Telecommunications and data services,15/05/2013,1257655,"1,824.58",A032826,Freedom Communications (UK) Ltd,
North West Leicestershire ,31UH,Leisure Centres,HLC,Hermitage Leisure Centre,Claim,22/05/2013,1257723,"2,166.67",A027454,Measham Leisure Centre,
North West Leicestershire ,31UH,Leisure Centres,HPBC,Hood Park Bar and Catering,Catering Supplies - Confectionery.,22/05/2013,1257827,528.63,A001264,Palmer Harvey Mclane Ltd,
North West Leicestershire ,31UH,Planning & Development,EDC,Environment - Development Control,Advertising Agency,22/05/2013,1257743,552.31,A001395,Euro RSCG People T/A Havas People Ltd,
North West Leicestershire ,31UH,Street Management,ENOT,Environment Transport,Recycling vehicle leasing & parts,22/05/2013,1257749,"2,325.39",A001647,Terberg Matec UK Limited,
North West Leicestershire ,31UH,Information Technology,ICT,ICT Services,I.T Reseller,22/05/2013,1257770,"1,662.00",A025151,Probrand Limited,
North West Leicestershire ,31UH,Street Management,ENOT,Environment Transport,Waste - Waste handling equipment manufac,22/05/2013,1257774,779.07,A017895,Geesink Norba Limited,
North West Leicestershire ,31UH,Finance,EXCH,Exchequer Services,IT - Software,22/05/2013,1257780,"4,775.00",A002968,Capita Business Services Ltd,
North West Leicestershire ,31UH,Planning & Development,EDC,Environment - Development Control,Advertising Agency,22/05/2013,1257741,623.66,A001395,Euro RSCG People T/A Havas People Ltd,
North West Leicestershire ,31UH,Planning & Development,EDC,Environment - Development Control,Advertising Agency,22/05/2013,1257735,"1,007.22",A001395,Euro RSCG People T/A Havas People Ltd,
North West Leicestershire ,31UH,Leisure Centres,HLC,Hermitage Leisure Centre,printing,22/05/2013,1257839,510.00,A037247,MWL Print Group Limited,
North West Leicestershire ,31UH,Street Management,ENOWM,Environment Waste Management,Storage -Polythene Sacks,22/05/2013,1257858,861.90,A030523,Acedag Limited,
North West Leicestershire ,31UH,Street Management,ENOT,Environment Transport,Vehicle parts & services,22/05/2013,1257871,"1,946.36",A035291,Mertrux Ltd,
North West Leicestershire ,31UH,Street Management,ENOT,Environment Transport,Vehicle maintenance - Gardening vehicle,22/05/2013,1257886,"18,569.00",A000757,Henton & Chattell Limited,
North West Leicestershire ,31UH,Leisure Centres,HPLC,Hood Park Leisure Centre,Swimming pool equip & chemicals,22/05/2013,1257877,"2,500.00",A000968,Leisureteq,
North West Leicestershire ,31UH,Information Technology,ICT,ICT Services,Fire Detection & Security Systems,,1257145,"1,077.93",A028261,TECSERV UK LIMITED,
North West Leicestershire ,31UH,Street Management,ENOP,Environment Parks,Safety equipment and clothing,22/05/2013,1257882,758.05,A009933,Westbury Industrial Supplies Limited,
North West Leicestershire ,31UH,Property Services,PROPFM,Property Facilities Management,Valuation Report,22/05/2013,1257899,726.00,A034291,Valuation Office Agency,
North West Leicestershire ,31UH,Property Services,PROPFM,Property Facilities Management,Fire Detection & Security Systems,22/05/2013,1257146,"1,864.92",A028261,TECSERV UK LIMITED,
North West Leicestershire ,31UH,Leisure Centres,HLC,Hermitage Leisure Centre,Chemical Controller - Maint Service Cont,22/05/2013,1257756,"1,217.00",A037677,Sterling Hydrotech Limited,
North West Leicestershire ,31UH,Street Management,ENOT,Environment Transport,Vehicle parts & services,22/05/2013,1257872,603.00,A035291,Mertrux Ltd,
North West Leicestershire ,31UH,Information Technology,ICT,ICT Services,Printing - Part of Danwood,22/05/2013,1257928,604.65,A036577,Danwood Finance,
North West Leicestershire ,31UH,Corporate Director,HR,Human Resources,childcare vouchers,29/05/2013,1258127,"2,607.00",A038606,Premier Employer Solutions Limited,
North West Leicestershire ,31UH,Property Services,PROPCL,Property Commercial Lettings,Annual Service Charges,29/05/2013,1258144,"2,035.12",A033712,A R ARGYLE,
North West Leicestershire ,31UH,Property Services,PROPCL,Property Commercial Lettings,Annual Service Charges,29/05/2013,1258145,"1,349.72",A033712,A R ARGYLE,
North West Leicestershire ,31UH,Leisure Centres,HLC,Hermitage Leisure Centre,Energy Management services,29/05/2013,1257897,"5,547.00",A034390,ENER.G Combined Power Ltd,
North West Leicestershire ,31UH,Environmental Health,EEHL,Environmental Health & Licensing,Veterinary & Food hygiene inspections,29/05/2013,1257992,610.41,A033670,Eville And Jones Limited,
North West Leicestershire ,31UH,Property Services,PROPFM,Property Facilities Management,Low Energy/Carbon Reduction Products,29/05/2013,1258146,"5,000.00",A037955,Charnwood Electrical Limited,
North West Leicestershire ,31UH,Leisure Centres,HPBC,Hood Park Bar and Catering,Catering Supplies - Confectionery.,29/05/2013,1258191,502.27,A001264,Palmer Harvey Mclane Ltd,
North West Leicestershire ,31UH,Street Management,ENOT,Environment Transport,Waste - Waste handling equipment manufac,29/05/2013,1258163,745.72,A017895,Geesink Norba Limited,
North West Leicestershire ,31UH,Planning & Development,EPP,Environment Planning Policy,Consultancy services - planning,29/05/2013,1258207,"2,950.00",A028258,Peter Brett Associates T/a Roger Tym & Partners,
North West Leicestershire ,31UH,Street Management,ENOP,Environment Parks,Sports Turf Contractors,29/05/2013,1258391,"4,984.00",A038270,F Woodward & Sons (Woodward Turfcare),
North West Leicestershire ,31UH,Information Technology,ICT,ICT Services,I.T Reseller,29/05/2013,1258296,"1,925.00",A025151,Probrand Limited,
North West Leicestershire ,31UH,Street Management,ENOP,Environment Parks,Top Dressing,29/05/2013,1258251,601.65,A034991,Sherriff Amenity,
North West Leicestershire ,31UH,Planning & Development,ECCTV,Environment - Town Centre/CCTV,T/Centre CCTV Monitoring Stn Personnel,29/05/2013,1255654,"3,923.00",A038132,Premier Security Services (Midlands) Limited,
North West Leicestershire ,31UH,Planning & Development,ECCTV,Environment - Town Centre/CCTV,T/Centre CCTV Monitoring Stn Personnel,29/05/2013,1257107,"3,923.00",A038132,Premier Security Services (Midlands) Limited,
North West Leicestershire ,31UH,Housing,HRAHM,HRA Housing Management,Seminar,29/05/2013,1258245,522.50,A014371,The East Midlands TP Forum,
North West Leicestershire ,31UH,Planning & Development,EBC,Building Control,Consultancy Fees ,29/05/2013,1258254,"2,310.00",A027423,Leicestershire County Council,
North West Leicestershire ,31UH,Leisure Centres,HPLC,Hood Park Leisure Centre,Catalogue stocks,01/05/2013,1256052,738.00,A000958,ESPO,
North West Leicestershire ,31UH,Housing Strategy,HS,Community - Housing Strategy,Housing Management Software,01/05/2013,1256410,812.50,A037979,Abritas Limited,
North West Leicestershire ,31UH,Property Services,PROPCL,Property Commercial Lettings,Horticulture -Internal Plants,01/05/2013,1256411,552.50,A003371,Urban Planters Leicestershire (limited),
North West Leicestershire ,31UH,Property Services,PROPCL,Property Commercial Lettings,Minor Works Framework Agreement,01/05/2013,1256412,546.00,A036239,Alf Wright Construction Limited,
North West Leicestershire ,31UH,Street Management,ENOT,Environment Transport,Bags - Polythene bags manufacturer,01/05/2013,1256430,"1,443.30",A017624,BPI Recycled Products,
North West Leicestershire ,31UH,Leisure Centres,HPLC,Hood Park Leisure Centre,Support contract,01/05/2013,1256434,"2,411.00",A033326,Building Automation Solutions Limited,
North West Leicestershire ,31UH,Information Technology,ICT,ICT Services,Telecommunications Services,01/05/2013,1256467,999.00,A038473,Cable & Wireless Worldwide,
North West Leicestershire ,31UH,Corporate Director,HR,Human Resources,Medical fees,01/05/2013,1256468,731.50,A031645,Forge Health Limited,
North West Leicestershire ,31UH,Housing Repairs,HRAHRM,HRA Housing Repairs & Maintenance,Fleet Vehicle Racking Systems,01/05/2013,1256408,542.72,A036773,Edstrom of Sweden,
North West Leicestershire ,31UH,Leisure Centres,HPLC,Hood Park Leisure Centre,Sport & Leisure Equipment,01/05/2013,1256441,917.66,A000969,J P Lennard Ltd,
North West Leicestershire ,31UH,Housing Repairs,HRAHRM,HRA Housing Repairs & Maintenance,Fleet Vehicle Racking Systems,01/05/2013,1256487,550.20,A036773,Edstrom of Sweden,
North West Leicestershire ,31UH,Housing Repairs,HRAHRM,HRA Housing Repairs & Maintenance,Fleet Vehicle Racking Systems,01/05/2013,1256488,542.72,A036773,Edstrom of Sweden,
North West Leicestershire ,31UH,Leisure Centres,HLC,Hermitage Leisure Centre,Music License,01/05/2013,1256505,"2,217.02",A001300,Phonographic Performances Ltd,
North West Leicestershire ,31UH,Leisure Centres,HLC,Hermitage Leisure Centre,IT - software services,01/05/2013,1256507,"1,265.00",A024642,Gladstone MRM Ltd,
North West Leicestershire ,31UH,Leisure Centres,HLBC,Hermitage Bar & Catering,drinks wholesaler,01/05/2013,1256514,"5,711.35",A039915,LWC - Birmingham,
North West Leicestershire ,31UH,Leisure Centres,HLBC,Hermitage Bar & Catering,drinks wholesaler,01/05/2013,1256515,"1,156.39",A039915,LWC - Birmingham,
North West Leicestershire ,31UH,Leisure Centres,HLC,Hermitage Leisure Centre,Claim,01/05/2013,1256525,812.50,A027454,Measham Leisure Centre,
North West Leicestershire ,31UH,Property Services,PROPFM,Property Facilities Management,Air conditioning systems,01/05/2013,1256534,573.00,A035362,Electrum Services Limited,
North West Leicestershire ,31UH,Environmental Health,EEHL,Environmental Health & Licensing,recruitment,01/05/2013,1256725,908.00,A031571,HBHC Synergy Ltd,
North West Leicestershire ,31UH,Housing,HRAPBS,HRA Performance & Business Support,Energy Saving Advice,01/05/2013,1255211,"8,450.00",A040062,EST Enterprises,
North West Leicestershire ,31UH,Finance,HOFI,Head of Finance,Parish Precepts,01/05/2013,1256788,"13,250.00",A000323,Charnwood Borough Council,
North West Leicestershire ,31UH,Finance,HOFI,Head of Finance,Training,01/05/2013,1256789,"77,635.00",A000770,Hinckley & Bosworth Borough Council,
North West Leicestershire ,31UH,Street Management,ENOT,Environment Transport,Refuse Vehicle Hire,01/05/2013,1256685,"1,750.00",A038553,M6 Vehicle Hire,
North West Leicestershire ,31UH,Planning & Development,EPP,Environment Planning Policy,scanning software,01/05/2013,1256677,"1,440.00",A040418,Clarity Information Solutions,
North West Leicestershire ,31UH,Finance,EXCH,Exchequer Services,Computer Software,08/05/2013,1256847,896.20,A010859,Selima Limited,
North West Leicestershire ,31UH,Property Services,PROPCL,Property Commercial Lettings,Postal Supplies -Franking Machines,08/05/2013,1256873,"2,020.00",A008204,Purchase Power,
North West Leicestershire ,31UH,Leisure Centres,HLC,Hermitage Leisure Centre,Swimming Teaching,08/05/2013,1256902,699.97,A001616,Swimming Teachers Association Ltd,
North West Leicestershire ,31UH,Housing,HRAPBS,HRA Performance & Business Support,Training,01/05/2013,1256163,"6,959.73",A000770,Hinckley & Bosworth Borough Council,
North West Leicestershire ,31UH,Housing Repairs,HRAHRM,HRA Housing Repairs & Maintenance,Consultancy Services - Surveying,02/05/2013,1256708,"282,080.00",A032547,Savills Commercial Limited,
North West Leicestershire ,31UH,Street Management,ENOT,Environment Transport,Tyres,08/05/2013,1256803,501.02,A034248,Stapletons Tyre Service Ltd,
North West Leicestershire ,31UH,Street Management,ENOT,Environment Transport,Gas - heating,08/05/2013,1256806,788.67,A032686,Calor Gas Limited,
North West Leicestershire ,31UH,Corporate Director,HR,Human Resources,Advertising Agency,08/05/2013,1256819,937.41,A001395,Euro RSCG People T/A Havas People Ltd,
North West Leicestershire ,31UH,Information Technology,ICT,ICT Services,IT solutions,08/05/2013,1256651,"59,228.88",A034753,ANS Group Plc,
North West Leicestershire ,31UH,Information Technology,ICT,ICT Services,IT solutions,08/05/2013,1256676,"5,500.00",A034753,ANS Group Plc,
North West Leicestershire ,31UH,Street Management,ENOT,Environment Transport,Vehicles,08/05/2013,1256814,"13,872.35",A039232,Polar Ford Barnsley,
North West Leicestershire ,31UH,Street Management,ENOT,Environment Transport,Vehicles,08/05/2013,1256815,"13,872.35",A039232,Polar Ford Barnsley,
North West Leicestershire ,31UH,Street Management,ENOT,Environment Transport,Vehicle parts & services,08/05/2013,1256966,628.53,A035291,Mertrux Ltd,
North West Leicestershire ,31UH,Leisure Centres,HLC,Hermitage Leisure Centre,Lift Maintenance,08/05/2013,1256900,537.87,A036300,Hytrac Lifts Limited,
North West Leicestershire ,31UH,Street Management,ENOT,Environment Transport,Vehicle & Electrical Parts,08/05/2013,1254291,900.00,A035550,C F Parkinson Limited,
North West Leicestershire ,31UH,Leisure Centres,HLC,Hermitage Leisure Centre,Energy Management services,08/05/2013,1256869,"5,547.00",A034390,ENER.G Combined Power Ltd,
North West Leicestershire ,31UH,Housing,HRAPBS,HRA Performance & Business Support,Printing & Mailing,08/05/2013,1256876,"1,035.11",A036087,Print Search Chester Limited,
North West Leicestershire ,31UH,Housing Strategy,HS,Community - Housing Strategy,Grants,08/05/2013,1256932,"1,030.00",A006912,Midlands Rural Housing Association,
North West Leicestershire ,31UH,Housing,HRAPBS,HRA Performance & Business Support,Printing & Mailing,08/05/2013,1256879,695.00,A036087,Print Search Chester Limited,
North West Leicestershire ,31UH,Leisure Centres,HLC,Hermitage Leisure Centre,Painting & Decorators,08/05/2013,1256916,"1,870.00",A001069,Mclean Decorators Ltd,
North West Leicestershire ,31UH,Leisure Centres,HLC,Hermitage Leisure Centre,Leisure Merchandise -Swimming Awards,08/05/2013,1256904,521.98,A001837,ASA Awards,
North West Leicestershire ,31UH,Street Management,ENOT,Environment Transport,Waste - Waste handling equipment manufac,08/05/2013,1256981,"168,429.00",A017895,Geesink Norba Limited,
North West Leicestershire ,31UH,Street Management,ENOT,Environment Transport,Waste - Waste handling equipment manufac,08/05/2013,1256984,"168,429.00",A017895,Geesink Norba Limited,
North West Leicestershire ,31UH,Finance,HOFI,Head of Finance,Training,08/05/2013,1257074,775.00,A000770,Hinckley & Bosworth Borough Council,
North West Leicestershire ,31UH,Information Technology,ICT,ICT Services,Paper & Boards,08/05/2013,1257014,633.72,A038178,Antalis Limited,
North West Leicestershire ,31UH,Street Management,ENOT,Environment Transport,Vehicles - Tyre Supplier,15/05/2013,1257126,"3,840.00",A033268,Bandvulc Tyres Ltd,
North West Leicestershire ,31UH,Street Management,ENOP,Environment Parks,Grounds Maintenance -Lanscaping tools,08/05/2013,1256712,550.27,A030744,Groundsman Tools & Supplies,
North West Leicestershire ,31UH,Street Management,ENOT,Environment Transport,Fuel purchases,15/05/2013,1257109,632.40,A034942,Pace Petroleum Ltd,
North West Leicestershire ,31UH,Property Services,PROPCL,Property Commercial Lettings,Subscriptions - Annual & Books,08/05/2013,1256848,635.00,A033386,RICS,
North West Leicestershire ,31UH,Finance,HOFI,Head of Finance,Training,08/05/2013,1257022,"17,197.00",A000770,Hinckley & Bosworth Borough Council,
North West Leicestershire ,31UH,Housing,HRAOPS,HRA Older Persons Service,Rent payments,15/05/2013,1257191,538.76,A000950,Leicestershire County Council,
North West Leicestershire ,31UH,Leisure Centres,HLC,Hermitage Leisure Centre,Sound & Lighting,15/05/2013,1257200,835.00,A027592,Lux Technical Ltd,
North West Leicestershire ,31UH,Street Management,ENOT,Environment Transport,Recycling vehicle leasing & parts,15/05/2013,1257238,"1,763.18",A001647,Terberg Matec UK Limited,
North West Leicestershire ,31UH,Leisure Centres,CDCC,Castle Donington Community College,Portable accommodation; secure storage,15/05/2013,1257248,505.72,A005413,Elliott Group Limited,
North West Leicestershire ,31UH,Street Management,ENOT,Environment Transport,Fire Detection & Security Systems,15/05/2013,1257144,550.22,A028261,TECSERV UK LIMITED,
North West Leicestershire ,31UH,Chief Exec,CHEX,Chief Executive,professional charges,15/05/2013,1257166,"1,289.11",A039356,Broadsted Associates Ltd,
North West Leicestershire ,31UH,Housing Strategy,HS,Community - Housing Strategy,Training,15/05/2013,1257182,600.00,A033578,The Bridge,
North West Leicestershire ,31UH,Leisure Centres,HLC,Hermitage Leisure Centre,Till and Credit Card Rolls,15/05/2013,1257256,680.00,A025712,MHG (Supplies) Ltd,
North West Leicestershire ,31UH,Leisure Centres,HLC,Hermitage Leisure Centre,Security Services,15/05/2013,1257258,540.00,A037299,Security Alert UK,
North West Leicestershire ,31UH,Leisure Centres,HLBC,Hermitage Bar & Catering,Catering supplies,15/05/2013,1257269,560.73,A000218,Briers Butchers Limited,
North West Leicestershire ,31UH,Housing,HRAHM,HRA Housing Management,Bed & Breakfast,15/05/2013,1256946,560.00,A032364,Pinewood Lodge,
North West Leicestershire ,31UH,Housing,HRAHM,HRA Housing Management,Bed & Breakfast,15/05/2013,1256947,780.00,A032364,Pinewood Lodge,
North West Leicestershire ,31UH,Finance,FINPLA,Financial Planning,IT - software services,15/05/2013,1257000,"1,907.00",A025004,Consilium Technologies,
North West Leicestershire ,31UH,Housing,HRAHM,HRA Housing Management,Consultancy&training -housing/tenants,15/05/2013,1254940,651.50,A030740,Priority Estates Project Limited,
North West Leicestershire ,31UH,Housing,HRAHM,HRA Housing Management,IT Equipment & Services,15/05/2013,1255017,564.00,A036738,Viglen Limited,
North West Leicestershire ,31UH,Housing,HRAHM,HRA Housing Management,Consultancy&training -housing/tenants,15/05/2013,1256416,609.00,A030740,Priority Estates Project Limited,
North West Leicestershire ,31UH,Street Management,ENOT,Environment Transport,Vehicle parts & services,15/05/2013,1256966,628.53,A035291,Mertrux Ltd,
North West Leicestershire ,31UH,Street Management,ENOT,Environment Transport,Fuel purchases,15/05/2013,1257110,"19,889.30",A034942,Pace Petroleum Ltd,
North West Leicestershire ,31UH,Planning & Development,EBC,Building Control,Consultancy Fees ,15/05/2013,1257188,"1,764.00",A027423,Leicestershire County Council,
North West Leicestershire ,31UH,Leisure & Culture,SPA,Sport & Physical Activity,Catalogue stocks,15/05/2013,1257199,"1,054.00",A000958,ESPO,
North West Leicestershire ,31UH,Information Technology,ICT,ICT Services,Telecommunications and data services,15/05/2013,1257655,"1,824.58",A032826,Freedom Communications (UK) Ltd,
North West Leicestershire ,31UH,Leisure Centres,HLC,Hermitage Leisure Centre,Claim,22/05/2013,1257723,"2,166.67",A027454,Measham Leisure Centre,
North West Leicestershire ,31UH,Leisure Centres,HPBC,Hood Park Bar and Catering,Catering Supplies - Confectionery.,22/05/2013,1257827,528.63,A001264,Palmer Harvey Mclane Ltd,
North West Leicestershire ,31UH,Planning & Development,EDC,Environment - Development Control,Advertising Agency,22/05/2013,1257743,552.31,A001395,Euro RSCG People T/A Havas People Ltd,
North West Leicestershire ,31UH,Street Management,ENOT,Environment Transport,Recycling vehicle leasing & parts,22/05/2013,1257749,"2,325.39",A001647,Terberg Matec UK Limited,
North West Leicestershire ,31UH,Information Technology,ICT,ICT Services,I.T Reseller,22/05/2013,1257770,"1,662.00",A025151,Probrand Limited,
North West Leicestershire ,31UH,Street Management,ENOT,Environment Transport,Waste - Waste handling equipment manufac,22/05/2013,1257774,779.07,A017895,Geesink Norba Limited,
North West Leicestershire ,31UH,Finance,EXCH,Exchequer Services,IT - Software,22/05/2013,1257780,"4,775.00",A002968,Capita Business Services Ltd,
North West Leicestershire ,31UH,Planning & Development,EDC,Environment - Development Control,Advertising Agency,22/05/2013,1257741,623.66,A001395,Euro RSCG People T/A Havas People Ltd,
North West Leicestershire ,31UH,Planning & Development,EDC,Environment - Development Control,Advertising Agency,22/05/2013,1257735,"1,007.22",A001395,Euro RSCG People T/A Havas People Ltd,
North West Leicestershire ,31UH,Leisure Centres,HLC,Hermitage Leisure Centre,Printing,22/05/2013,1257839,510.00,A037247,MWL Print Group Limited,
North West Leicestershire ,31UH,Street Management,ENOWM,Environment Waste Management,Storage -Polythene Sacks,22/05/2013,1257858,861.90,A030523,Acedag Limited,
North West Leicestershire ,31UH,Street Management,ENOT,Environment Transport,Vehicle parts & services,22/05/2013,1257871,"1,946.36",A035291,Mertrux Ltd,
North West Leicestershire ,31UH,Street Management,ENOT,Environment Transport,Vehicle maintenance - Gardening vehicle,22/05/2013,1257886,"18,569.00",A000757,Henton & Chattell Limited,
North West Leicestershire ,31UH,Leisure Centres,HPLC,Hood Park Leisure Centre,Swimming pool equip & chemicals,22/05/2013,1257877,"2,500.00",A000968,Leisureteq,
North West Leicestershire ,31UH,Information Technology,ICT,ICT Services,Fire Detection & Security Systems,22/05/2013,1257145,"1,077.93",A028261,TECSERV UK LIMITED,
North West Leicestershire ,31UH,Street Management,ENOP,Environment Parks,Safety equipment and clothing,22/05/2013,1257882,758.05,A009933,Westbury Industrial Supplies Limited,
North West Leicestershire ,31UH,Property Services,PROPFM,Property Facilities Management,Valuation Report,22/05/2013,1257899,726.00,A034291,Valuation Office Agency,
North West Leicestershire ,31UH,Property Services,PROPFM,Property Facilities Management,Fire Detection & Security Systems,22/05/2013,1257146,"1,864.92",A028261,TECSERV UK LIMITED,
North West Leicestershire ,31UH,Leisure Centres,HLC,Hermitage Leisure Centre,Chemical Controller - Maint Service Cont,22/05/2013,1257756,"1,217.00",A037677,Sterling Hydrotech Limited,
North West Leicestershire ,31UH,Street Management,ENOT,Environment Transport,Vehicle parts & services,22/05/2013,1257872,603.00,A035291,Mertrux Ltd,
North West Leicestershire ,31UH,Information Technology,ICT,ICT Services,Printing - Part of Danwood,22/05/2013,1257928,604.65,A036577,Danwood Finance,
North West Leicestershire ,31UH,Corporate Director,HR,Human Resources,childcare vouchers,29/05/2013,1258127,"2,607.00",A038606,Premier Employer Solutions Limited,
North West Leicestershire ,31UH,Property Services,PROPCL,Property Commercial Lettings,Annual Service Charges,29/05/2013,1258144,"2,035.12",A033712,A R ARGYLE,
North West Leicestershire ,31UH,Property Services,PROPCL,Property Commercial Lettings,Annual Service Charges,29/05/2013,1258145,"1,349.72",A033712,A R ARGYLE,
North West Leicestershire ,31UH,Leisure Centres,HLC,Hermitage Leisure Centre,Energy Management services,29/05/2013,1257897,"5,547.00",A034390,ENER.G Combined Power Ltd,
North West Leicestershire ,31UH,Environmental Health,EEHL,Environmental Health & Licensing,Veterinary & Food hygiene inspections,29/05/2013,1257992,610.41,A033670,Eville And Jones Limited,
North West Leicestershire ,31UH,Property Services,PROPCL,Property Commercial Lettings,Annual Service Charges,29/05/2013,1258158,"1,349.92",A033712,A R ARGYLE,
North West Leicestershire ,31UH,Property Services,PROPFM,Property Facilities Management,Low Energy/Carbon Reduction Products,29/05/2013,1258146,"5,000.00",A037955,Charnwood Electrical Limited,
North West Leicestershire ,31UH,Leisure Centres,HPBC,Hood Park Bar and Catering,Catering Supplies - Confectionery.,29/05/2013,1258191,502.27,A001264,Palmer Harvey Mclane Ltd,
North West Leicestershire ,31UH,Street Management,ENOT,Environment Transport,Waste - Waste handling equipment manufac,29/05/2013,1258163,745.72,A017895,Geesink Norba Limited,
North West Leicestershire ,31UH,Planning & Development,EPP,Environment Planning Policy,Consultancy services - planning,29/05/2013,1258207,"2,950.00",A028258,Peter Brett Associates T/a Roger Tym & Partners,
North West Leicestershire ,31UH,Street Management,ENOP,Environment Parks,Sports Turf Contractors,29/05/2013,1258391,"4,984.00",A038270,F Woodward & Sons (Woodward Turfcare),
North West Leicestershire ,31UH,Information Technology,ICT,ICT Services,I.T Reseller,29/05/2013,1258296,"1,925.00",A025151,Probrand Limited,
North West Leicestershire ,31UH,Street Management,ENOP,Environment Parks,Top Dressing,29/05/2013,1258251,601.65,A034991,Sherriff Amenity,
North West Leicestershire ,31UH,Planning & Development,ECCTV,Environment - Town Centre/CCTV,T/Centre CCTV Monitoring Stn Personnel,29/05/2013,1255654,"3,923.00",A038132,Premier Security Services (Midlands) Limited,
North West Leicestershire ,31UH,Planning & Development,ECCTV,Environment - Town Centre/CCTV,T/Centre CCTV Monitoring Stn Personnel,29/05/2013,1257107,"3,923.00",A038132,Premier Security Services (Midlands) Limited,
North West Leicestershire ,31UH,Housing,HRAHM,HRA Housing Management,Seminar,29/05/2013,1258245,522.50,A014371,The East Midlands TP Forum,
North West Leicestershire ,31UH,Planning & Development,EBC,Building Control,Consultancy Fees ,29/05/2013,1258254,"2,310.00",A027423,Leicestershire County Council,
